bitfinex/quotes_SOLUSD_20251002
["timestamp","ask_amount","ask_price","bid_price","bid_amount"]
[1759427031179,4.98401122,230.17,230.04,0.66]
[1759427031377,4.32401122,230.16,230.03,10.86799241]
[1759427031576,0.66,230.15,230.03,10.86799241]
[1759427031781,0.66,230.14,230.06,20.8]
[1759427032181,0.66,230.14,230.05,5.00688111]
[1759427033185,0.66,230.14,230.05,15.87408389]
[1759427035481,0.66,230.13,230.03,4.34711514]
[1759427035709,4.32401122,230.1,230.0,4.54779685]
[1759427035886,0.66,230.09,230.0,5.20779685]
[1759427036085,0.66,230.09,230.0,16.07736206]
[1759427037108,0.66,230.09,230.02,4.34744804]
[1759427037790,31.08,230.12,230.02,4.34744804]
[1759427038114,0.66,230.11,230.03,0.66]
[1759427038320,0.66,230.11,230.02,4.34744804]
[1759427038493,0.66,230.1,230.02,4.34744804]
[1759427038685,0.66,230.09,230.02,4.34744804]
[1759427039209,5.00616255,230.09,230.02,4.34744804]
[1759427039415,0.66,230.09,230.02,4.34744804]
[1759427040524,0.66,230.09,230.02,5.00744804]
[1759427040995,31.08,230.12,230.02,5.00744804]
[1759427041184,5.0057801,230.11,230.02,5.00744804]
[1759427041822,0.7,230.1,230.02,5.00744804]
[1759427042004,0.7,230.09,230.02,4.34744804]
[1759427042401,0.7,230.11,230.02,4.99744804]
[1759427043009,0.7,230.1,230.02,4.99744804]
[1759427044021,0.7,230.1,230.03,4.34725905]
[1759427044219,0.7,230.1,230.01,4.34762927]
[1759427044220,0.7,230.09,230.01,4.34762927]
[1759427044599,0.7,230.08,230.01,4.34762927]
[1759427045227,5.04641555,230.08,230.01,4.34762927]
[1759427046922,31.06,230.12,230.0,21.65]
[1759427046923,0.7,230.07,230.0,4.54781602]
[1759427047238,0.7,230.07,230.0,0.2]
[1759427047239,0.7,230.06,230.0,0.2]
[1759427048106,4.32401122,230.01,230.0,0.2]
[1759427048322,5.02401122,230.01,230.0,0.2]
[1759427049099,9.37164827,230.01,230.0,0.2]
[1759427049297,9.37164827,230.01,230.0,1e-08]
[1759427049519,10.87647521,229.93,229.89,0.2]
[1759427049741,10.87647521,229.91,229.89,0.2]
[1759427049904,15.20048643,229.91,229.89,0.2]
[1759427050104,0.7,229.9,229.89,0.2]
[1759427050316,11.57647521,229.9,229.89,0.2]
[1759427050908,15.90048643,229.9,229.89,0.2]
[1759427051109,20.25020369,229.9,229.89,0.2]
[1759427051602,46.96619247,229.9,229.89,0.2]
[1759427051921,51.29020369,229.9,229.89,0.2]
[1759427052629,10.87647521,229.85,229.78,0.2]
[1759427052811,20.8,229.86,229.78,0.2]
[1759427052812,10.87647521,229.83,229.78,0.2]
[1759427053007,37.67259677,229.9,229.78,0.2]
[1759427053008,4.32401122,229.87,229.78,0.2]
[1759427053200,10.87647521,229.87,229.79,0.65]
[1759427053401,31.08,229.86,229.79,0.65]
[1759427053628,31.1,229.86,229.79,0.65]
[1759427053972,31.1,229.87,229.79,0.65]
[1759427054404,31.1,229.87,229.81,20.8]
[1759427054606,7.43315042,229.91,229.82,0.65]
[1759427055023,32.71315042,229.91,229.85,20.8]
[1759427055213,33.41315042,229.91,229.85,20.8]
[1759427055428,32.71315042,229.91,229.85,20.8]
[1759427055613,33.41315042,229.91,229.83,4.35104207]
[1759427055804,33.41315042,229.91,229.83,25.15104207]
[1759427056010,33.41315042,229.91,229.83,25.80104207]
[1759427057133,37.06270341,229.91,229.83,25.15104207]
[1759427057319,0.7,229.9,229.83,25.15104207]
[1759427057634,7.43315042,229.91,229.83,4.35104207]
[1759427057938,10.87647521,229.88,229.82,20.8]
[1759427058109,0.7,229.87,229.82,20.8]
[1759427058304,10.87647521,229.85,229.78,4.5518302]
[1759427058509,31.1,229.84,229.78,4.5518302]
[1759427059135,31.8,229.84,229.78,4.5518302]
[1759427060114,42.18075331,229.84,229.78,0.2]
[1759427060306,0.7,229.83,229.78,0.2]
[1759427060507,0.7,229.82,229.78,0.2]
[1759427061306,0.7,229.81,229.78,0.2]
[1759427063744,0.66,229.8,229.78,0.2]
[1759427064039,31.08,229.79,229.78,0.2]
[1759427064920,4.35101114,229.84,229.78,0.2]
[1759427065239,31.08,229.83,229.78,0.2]
[1759427065435,31.74,229.83,229.78,0.2]
[1759427065823,0.66,229.86,229.79,0.72]
[1759427066138,31.06,229.85,229.78,4.55195546]
[1759427067139,31.06,229.84,229.78,4.55195546]
[1759427068844,5.01070193,229.85,229.78,4.55195546]
[1759427069038,0.66,229.85,229.78,4.55195546]
[1759427069228,31.04,229.84,229.78,4.55195546]
[1759427071826,0.66,229.85,229.78,4.55195546]
[1759427072329,31.02,229.84,229.78,4.55195546]
[1759427073457,31.02,229.84,229.78,15.4319276]
[1759427074360,31.66,229.85,229.78,16.1219276]
[1759427075042,0.7,229.84,229.78,15.4319276]
[1759427075237,0.7,229.83,229.78,25.35195546]
[1759427075648,31.0,229.85,229.79,0.69]
[1759427076865,30.98,229.85,229.79,0.69]
[1759427077236,0.7,229.84,229.8,4.35161009]
[1759427078048,0.7,229.86,229.8,15.23063532]
[1759427078268,0.7,229.88,229.81,0.69]
[1759427078648,31.0,229.88,229.81,0.69]
[1759427079268,0.7,229.9,229.81,0.69]
[1759427079269,0.7,229.9,229.84,36.02798467]
[1759427079470,0.7,229.9,229.84,36.71798467]
[1759427079665,0.7,229.9,229.84,25.15085276]
[1759427079868,0.7,229.9,229.81,10.8783407]
[1759427079869,0.7,229.89,229.83,4.3510223]
[1759427080179,0.7,229.88,229.83,4.3510223]
[1759427080845,0.7,229.88,229.83,5.0410223]
[1759427081956,42.78268859,229.91,229.83,5.0410223]
[1759427081957,38.43315042,229.91,229.83,15.91862748]
[1759427082248,0.7,229.9,229.83,15.91862748]
[1759427082766,31.68,229.9,229.83,15.91862748]
[1759427083273,0.7,229.9,229.84,0.69]
[1759427083447,0.7,229.9,229.83,15.91862748]
[1759427084843,0.7,229.89,229.83,15.91862748]
[1759427085641,0.7,229.89,229.83,4.3510223]
[1759427085845,0.7,229.89,229.84,20.8]
[1759427086062,0.7,229.88,229.84,25.15072461]
[1759427086260,0.7,229.88,229.84,4.35072461]
[1759427086459,0.7,229.87,229.83,20.8]
[1759427086668,0.7,229.86,229.83,20.8]
[1759427087053,0.7,229.86,229.8,11.56877377]
[1759427087054,0.7,229.86,229.81,4.35142073]
[1759427087378,0.7,229.85,229.81,4.35142073]
[1759427087575,0.7,229.84,229.81,4.35142073]
[1759427087780,0.7,229.83,229.8,20.8]
[1759427088175,0.7,229.82,229.79,4.35162383]
[1759427088377,4.35081623,229.85,229.79,4.35162383]
[1759427088582,0.7,229.84,229.79,4.35162383]
[1759427088776,0.7,229.83,229.79,4.35162383]
[1759427089081,0.7,229.82,229.79,4.35162383]
[1759427090172,4.35081623,229.85,229.79,4.35162383]
[1759427090371,0.7,229.81,229.78,4.55197642]
[1759427091865,0.7,229.8,229.78,0.2]
[1759427092186,0.7,229.82,229.78,0.2]
[1759427092365,4.35084814,229.85,229.78,0.2]
[1759427092366,0.7,229.81,229.78,0.2]
[1759427092568,0.7,229.81,229.78,4.55196144]
[1759427093366,4.35084814,229.85,229.78,0.2]
[1759427093688,0.7,229.81,229.78,0.2]
[1759427094571,0.7,229.81,229.78,4.55198381]
[1759427095792,0.7,229.81,229.78,0.2]
[1759427096491,4.35124024,229.82,229.78,0.2]
[1759427096492,10.87647521,229.85,229.78,4.55185857]
[1759427096670,0.7,229.84,229.78,4.55185857]
[1759427096871,0.7,229.83,229.78,0.2]
[1759427097072,0.7,229.82,229.78,0.2]
[1759427097681,30.98,229.83,229.78,5.24191284]
[1759427097876,31.68,229.83,229.78,5.24191284]
[1759427098074,4.3500957,229.88,229.78,15.43188498]
[1759427098295,0.7,229.86,229.79,0.69]
[1759427099291,10.87647521,229.88,229.8,15.23063532]
[1759427099593,31.68,229.87,229.8,15.92063532]
[1759427102207,4.34972811,229.9,229.8,15.23063532]
[1759427102510,31.64,229.89,229.83,20.8]
[1759427102817,0.66,229.88,229.8,25.87161009]
[1759427103203,0.66,229.88,229.83,20.8]
[1759427103606,35.32999339,229.89,229.83,25.15101008]
[1759427103823,0.66,229.88,229.83,25.15101008]
[1759427103999,0.66,229.87,229.83,20.8]
[1759427104207,0.66,229.86,229.81,5.07140499]
[1759427104419,0.66,229.85,229.81,4.35140499]
[1759427104921,0.66,229.88,229.81,4.35140499]
[1759427105226,0.66,229.87,229.81,5.07140499]
[1759427106194,0.66,229.86,229.78,0.2]
[1759427106553,3.47723833,229.86,229.78,0.2]
[1759427106689,0.66,229.86,229.78,0.2]
[1759427106890,30.98,229.85,229.79,0.72]
[1759427107329,2.81723833,229.89,229.79,0.72]
[1759427107330,0.66,229.89,229.79,0.72]
[1759427107500,31.64,229.88,229.79,0.72]
[1759427108126,31.64,229.88,229.82,20.8]
[1759427108492,0.66,229.88,229.82,20.8]
[1759427108691,5.01009747,229.88,229.82,20.8]
[1759427109113,0.66,229.88,229.82,20.8]
[1759427109315,30.98,229.9,229.83,21.52]
[1759427109535,30.98,229.9,229.84,0.72]
[1759427110098,30.98,229.9,229.85,4.35066347]
[1759427110319,31.64,229.9,229.85,5.07066347]
[1759427110520,0.66,229.89,229.82,20.8]
[1759427110956,30.98,229.91,229.83,0.72]
[1759427111146,0.66,229.92,229.83,0.72]
[1759427111819,0.66,229.92,229.85,20.8]
[1759427112022,0.66,229.92,229.85,21.52]
[1759427112223,30.98,229.93,229.86,5.0704742]
[1759427112934,31.64,229.93,229.86,15.9466597]
[1759427113241,31.64,229.93,229.86,5.0704742]
[1759427114220,31.64,229.93,229.86,4.3504742]
[1759427114221,30.98,229.93,229.86,4.3504742]
[1759427114423,0.66,229.92,229.86,4.3504742]
[1759427114623,35.32920322,229.93,229.85,4.35066138]
[1759427114624,0.66,229.91,229.85,4.35066138]
[1759427114833,0.66,229.9,229.86,20.8]
[1759427115037,0.66,229.89,229.86,20.8]
[1759427115231,35.32920322,229.93,229.86,20.8]
[1759427115439,0.66,229.91,229.86,20.8]
[1759427115641,0.66,229.9,229.86,20.8]
[1759427116056,0.66,229.92,229.86,20.8]
[1759427116559,0.66,229.92,229.86,25.15030846]
[1759427116757,30.98,229.93,229.86,25.87030846]
[1759427117039,0.66,229.92,229.86,25.87030846]
[1759427117721,35.32915557,229.93,229.86,25.15030846]
[1759427117925,0.66,229.92,229.86,25.15030846]
[1759427118127,0.66,229.91,229.86,25.15030846]
[1759427118453,0.66,229.9,229.86,25.15030846]
[1759427118654,5.00949251,229.92,229.86,25.87030846]
[1759427119626,35.98949251,229.92,229.86,25.15030846]
[1759427121128,30.98,229.92,229.86,25.15030846]
[1759427121334,31.64,229.92,229.86,25.15030846]
[1759427121850,30.98,229.92,229.86,25.15030846]
[1759427122154,0.66,229.91,229.86,25.15030846]
[1759427122325,0.66,229.9,229.84,4.35074399]
[1759427122532,0.66,229.89,229.84,25.15074399]
[1759427122756,0.66,229.88,229.84,20.8]
[1759427122929,0.66,229.87,229.79,0.72]
[1759427123131,0.66,229.87,229.79,5.07179946]
[1759427123433,0.66,229.87,229.82,20.8]
[1759427123632,0.7,229.86,229.82,20.8]
[1759427123833,0.7,229.85,229.81,20.8]
[1759427124039,0.7,229.84,229.81,20.8]
[1759427124232,30.96,229.87,229.78,11.07982855]
[1759427124233,0.7,229.83,229.78,0.2]
[1759427124443,30.96,229.82,229.78,0.2]
[1759427124644,0.7,229.81,229.78,0.2]
[1759427124846,0.7,229.8,229.78,0.2]
[1759427126037,35.31124213,229.82,229.78,0.2]
[1759427126231,30.96,229.81,229.78,0.2]
[1759427126445,31.66,229.81,229.78,0.2]
[1759427127447,0.7,229.8,229.78,0.2]
[1759427127754,0.7,229.79,229.78,0.2]
[1759427129150,5.05179946,229.79,229.78,0.2]
[1759427131241,6.85437564,229.79,229.78,0.2]
[1759427133968,6.85437564,229.79,229.78,1e-08]
[1759427133969,19.88437564,229.79,229.78,1e-08]
[1759427134337,5.05179946,229.79,229.78,1e-08]
[1759427134533,50.86437564,229.79,229.78,1e-08]
[1759427135062,61.74085085,229.79,229.78,1e-08]
[1759427136737,30.76085085,229.79,229.78,1e-08]
[1759427136952,61.74085085,229.79,229.78,1e-08]
[1759427137258,15.22865347,229.77,229.76,1e-08]
[1759427137449,17.03122965,229.77,229.76,1e-08]
[1759427137644,17.74122965,229.77,229.76,1e-08]
[1759427139768,69.52122965,229.77,229.76,1e-08]
[1759427141845,48.72122965,229.77,229.76,1e-08]
[1759427143243,38.54122965,229.77,229.76,1e-08]
[1759427143443,69.52122965,229.77,229.76,1e-08]
[1759427143979,69.52122965,229.77,229.75,0.2]
[1759427143980,58.64475444,229.77,229.75,1e-08]
[1759427144181,1.80257618,229.76,229.75,1e-08]
[1759427144680,2.51257618,229.76,229.75,1e-08]
[1759427145183,15.54257618,229.76,229.75,1e-08]
[1759427145660,15.54257618,229.76,229.65,0.2]
[1759427145661,10.87647521,229.72,229.65,0.2]
[1759427145870,37.83331421,229.66,229.65,0.2]
[1759427146059,67.01073803,229.66,229.65,0.2]
[1759427146567,68.81331421,229.66,229.65,0.2]
[1759427147073,48.01331421,229.66,229.65,0.2]
[1759427147248,46.21073803,229.66,229.65,0.2]
[1759427147449,41.85647521,229.66,229.65,0.88]
[1759427147774,46.21073803,229.66,229.65,0.88]
[1759427147985,46.21073803,229.66,229.65,0.2]
[1759427148191,48.01331421,229.66,229.65,0.2]
[1759427148369,48.72331421,229.66,229.65,0.2]
[1759427148885,68.81331421,229.66,229.65,0.2]
[1759427149380,69.52331421,229.66,229.65,0.2]
[1759427150171,68.81331421,229.66,229.65,0.2]
[1759427150574,67.01073803,229.66,229.65,0.2]
[1759427151385,68.81331421,229.66,229.65,0.2]
[1759427151619,69.52331421,229.66,229.65,0.2]
[1759427151788,68.81331421,229.66,229.65,0.2]
[1759427152173,37.83331421,229.66,229.65,0.2]
[1759427152378,46.21073803,229.66,229.65,0.2]
[1759427153184,15.23073803,229.66,229.65,0.2]
[1759427153391,41.85647521,229.66,229.65,0.88]
[1759427153593,46.21073803,229.66,229.65,0.88]
[1759427153796,41.85647521,229.66,229.65,0.88]
[1759427154177,1.80257618,229.71,229.65,0.88]
[1759427154485,30.98,229.7,229.66,0.68]
[1759427154789,30.98,229.69,229.65,0.2]
[1759427155094,30.98,229.69,229.67,0.68]
[1759427155478,30.98,229.69,229.65,0.2]
[1759427155479,30.98,229.69,229.65,0.88]
[1759427155897,30.98,229.69,229.66,0.68]
[1759427156196,4.35388366,229.68,229.67,0.68]
[1759427156570,4.35388366,229.68,229.65,0.88]
[1759427156774,30.98,229.67,229.65,0.88]
[1759427157072,30.98,229.67,229.66,0.68]
[1759427157883,30.98,229.67,229.65,0.88]
[1759427158073,30.98,229.67,229.66,0.68]
[1759427158276,30.98,229.67,229.65,0.2]
[1759427158491,30.98,229.67,229.66,0.68]
[1759427158685,30.98,229.7,229.66,0.68]
[1759427160506,0.71,229.81,229.69,20.8]
[1759427160688,24.78,229.8,229.7,0.68]
[1759427160881,24.78,229.8,229.7,21.48]
[1759427161081,30.98,229.83,229.71,0.68]
[1759427162382,30.98,229.83,229.74,20.8]
[1759427162383,35.33104958,229.83,229.74,20.8]
[1759427162686,35.33104958,229.83,229.75,0.67]
[1759427163915,0.66,229.82,229.75,21.47]
[1759427164382,4.35142073,229.81,229.75,21.47]
[1759427164587,0.66,229.82,229.75,25.82240494]
[1759427164893,30.98,229.83,229.76,0.67]
[1759427165079,35.99114091,229.83,229.75,20.8]
[1759427165275,35.99114091,229.83,229.76,0.67]
[1759427165495,35.33114091,229.83,229.76,21.47]
[1759427165811,30.96,229.82,229.77,0.67]
[1759427166812,30.96,229.82,229.78,4.35198885]
[1759427166982,5.01047996,229.86,229.79,0.67]
[1759427166983,30.96,229.85,229.79,0.67]
[1759427167380,5.01019066,229.88,229.79,0.67]
[1759427167594,30.96,229.87,229.81,0.5]
[1759427167885,30.96,229.87,229.82,0.67]
[1759427169228,30.96,229.87,229.83,5.02104207]
[1759427169386,4.34960653,229.91,229.83,5.02104207]
[1759427169595,30.96,229.9,229.83,5.02104207]
[1759427170093,0.66,229.92,229.84,0.67]
[1759427170284,30.96,229.91,229.86,20.8]
[1759427170497,30.96,229.91,229.86,21.47]
[1759427170699,30.96,229.91,229.87,0.67]
[1759427170898,30.96,229.91,229.86,20.8]
[1759427171300,30.96,229.91,229.87,5.02028494]
[1759427171927,31.62,229.91,229.86,20.8]
[1759427172222,31.62,229.91,229.86,25.15046699]
[1759427172426,30.96,229.91,229.86,25.82046699]
[1759427172796,31.62,229.91,229.86,25.82046699]
[1759427173018,30.96,229.91,229.87,0.67]
[1759427173227,0.66,229.96,229.88,0.67]
[1759427173525,30.96,229.94,229.88,0.67]
[1759427174992,30.96,229.94,229.88,5.02007847]
[1759427175802,30.96,229.94,229.75,34.82396506]
[1759427175803,20.8,229.91,229.75,13.73193534]
[1759427176003,1.80257618,229.86,229.76,4.35236768]
[1759427176215,31.64,229.85,229.78,20.8]
[1759427176404,0.66,229.84,229.76,4.35236768]
[1759427176611,0.66,229.83,229.75,5.02255152]
[1759427176806,32.80257618,229.85,229.73,4.35275081]
[1759427176807,0.66,229.82,229.73,4.35275081]
[1759427177013,4.35161009,229.8,229.73,4.35275081]
[1759427177211,0.66,229.79,229.75,20.8]
[1759427177602,0.66,229.78,229.7,11.55354473]
[1759427177802,0.66,229.77,229.69,4.35356697]
[1759427179313,5.01225652,229.77,229.69,4.35356697]
[1759427179519,4.35194834,229.79,229.7,0.67]
[1759427179704,0.66,229.8,229.7,0.67]
[1759427179909,31.66,229.8,229.7,0.67]
[1759427180809,36.01163218,229.8,229.71,4.35331504]
[1759427181422,0.66,229.8,229.72,0.67]
[1759427181720,0.66,229.84,229.74,20.8]
[1759427181921,0.66,229.84,229.75,0.67]
[1759427182121,30.98,229.86,229.75,0.67]
[1759427182303,31.0,229.89,229.75,0.67]
[1759427182504,0.66,229.88,229.75,0.67]
[1759427182740,0.66,229.88,229.79,20.8]
[1759427182911,0.66,229.88,229.79,21.47]
[1759427183229,0.66,229.87,229.79,21.47]
[1759427184315,0.66,229.86,229.79,20.8]
[1759427184713,0.66,229.86,229.74,4.35259092]
[1759427184714,4.35085276,229.84,229.74,4.35259092]
[1759427185016,0.66,229.83,229.74,4.35259092]
[1759427185220,0.66,229.82,229.74,4.35259092]
[1759427185735,0.66,229.81,229.74,4.35259092]
[1759427186546,0.66,229.8,229.74,4.35259092]
[1759427187136,4.35150333,229.81,229.73,20.8]
[1759427187308,0.66,229.79,229.7,20.8]
[1759427187507,11.53647521,229.78,229.67,11.60490584]
[1759427187713,31.0,229.83,229.66,4.35426282]
[1759427187714,4.35255712,229.75,229.66,4.35426282]
[1759427188018,11.53647521,229.74,229.67,20.8]
[1759427188213,0.66,229.73,229.67,20.8]
[1759427188420,10.87647521,229.74,229.65,0.2]
[1759427188724,0.66,229.72,229.65,4.55436683]
[1759427189542,0.66,229.71,229.65,0.2]
[1759427189750,5.01336127,229.71,229.65,4.55444794]
[1759427190241,0.66,229.7,229.65,0.2]
[1759427190445,10.87647521,229.69,229.65,0.2]
[1759427190735,0.66,229.68,229.65,0.2]
[1759427191033,0.66,229.67,229.65,0.2]
[1759427191336,0.66,229.66,229.65,0.2]
[1759427191937,5.01426282,229.66,229.65,0.2]
[1759427192541,15.89073803,229.66,229.65,0.2]
[1759427194654,11.53647521,229.66,229.65,0.2]
[1759427195452,15.89073803,229.66,229.65,0.2]
[1759427196321,10.87647521,229.66,229.65,0.2]
[1759427196523,41.89647521,229.66,229.65,0.2]
[1759427196721,42.60647521,229.66,229.65,0.2]
[1759427197952,46.96073803,229.66,229.65,0.2]
[1759427199245,15.94073803,229.66,229.65,0.2]
[1759427199457,46.92073803,229.66,229.65,0.2]
[1759427200922,20.0,229.77,229.65,0.2]
[1759427200923,0.71,229.69,229.65,0.2]
[1759427201140,31.0,229.68,229.65,0.2]
[1759427201754,30.98,229.67,229.65,0.2]
[1759427201948,41.85647521,229.7,229.65,0.2]
[1759427202155,41.85647521,229.7,229.65,5.22440148]
[1759427202329,0.71,229.72,229.66,0.67]
[1759427202645,30.98,229.71,229.66,0.67]
[1759427202838,30.98,229.71,229.65,0.2]
[1759427202839,0.71,229.7,229.65,0.2]
[1759427203639,30.98,229.69,229.65,0.2]
[1759427203850,0.71,229.7,229.65,0.2]
[1759427204052,0.71,229.7,229.51,23.54464436]
[1759427204053,31.69,229.69,229.55,0.2]
[1759427204355,27.53181233,229.66,229.55,0.87]
[1759427204653,0.71,229.69,229.57,0.67]
[1759427204654,31.2,229.65,229.57,0.67]
[1759427205042,31.2,229.65,229.59,20.8]
[1759427205233,31.22,229.67,229.6,0.67]
[1759427205433,31.22,229.68,229.6,0.67]
[1759427206126,31.22,229.68,229.61,4.355211]
[1759427206549,31.22,229.68,229.62,0.67]
[1759427207129,0.71,229.73,229.64,20.8]
[1759427207437,0.71,229.73,229.62,0.67]
[1759427207438,0.71,229.82,229.66,20.8]
[1759427207845,0.71,229.82,229.67,0.67]
[1759427208046,10.87647521,229.81,229.67,0.67]
[1759427208251,10.87647521,229.81,229.71,20.8]
[1759427208562,0.71,229.8,229.72,0.67]
[1759427208942,10.87647521,229.79,229.71,20.8]
[1759427209142,31.99,229.78,229.71,20.8]
[1759427210134,5.06217826,229.77,229.71,20.8]
[1759427210761,5.06217826,229.77,229.7,20.8]
[1759427211060,0.71,229.76,229.68,0.67]
[1759427211361,0.71,229.76,229.71,20.8]
[1759427211537,0.71,229.75,229.71,20.8]
[1759427212138,0.71,229.75,229.69,4.35351676]
[1759427212355,5.06257037,229.75,229.71,20.8]
[1759427212753,5.06257037,229.75,229.66,10.88531394]
[1759427212754,4.35257037,229.75,229.67,4.35395024]
[1759427212964,0.71,229.74,229.65,5.02432615]
[1759427213147,10.87647521,229.72,229.6,10.88824853]
[1759427213352,11.58647521,229.72,229.62,0.67]
[1759427213545,11.58647521,229.72,229.64,20.8]
[1759427213744,11.58647521,229.72,229.65,0.67]
[1759427214359,4.35331504,229.71,229.65,20.8]
[1759427214571,0.71,229.7,229.61,0.67]
[1759427215169,0.71,229.7,229.61,5.02508276]
[1759427215682,5.0636941,229.69,229.61,5.02508276]
[1759427215856,31.24,229.68,229.61,5.02508276]
[1759427218456,35.59390128,229.68,229.61,5.02508276]
[1759427219275,36.30390128,229.68,229.61,5.02508276]
[1759427219473,31.95,229.68,229.61,5.02508276]
[1759427219767,36.30388664,229.68,229.61,4.35508276]
[1759427220141,31.95,229.68,229.61,4.35508276]
[1759427220343,0.71,229.68,229.61,15.91311028]
[1759427220648,31.2,229.73,229.64,20.8]
[1759427220844,31.2,229.73,229.65,0.67]
[1759427221149,31.2,229.74,229.65,0.67]
[1759427221358,0.71,229.75,229.65,0.67]
[1759427221750,31.91,229.75,229.66,15.23991987]
[1759427221951,0.7,229.74,229.66,5.00426282]
[1759427222153,0.7,229.73,229.68,20.8]
[1759427222448,0.7,229.72,229.68,20.8]
[1759427222644,0.7,229.71,229.66,4.35426282]
[1759427223057,0.7,229.7,229.63,20.8]
[1759427223371,0.7,229.69,229.58,0.65]
[1759427223566,0.7,229.69,229.58,21.45]
[1759427223784,5.05388366,229.68,229.61,20.8]
[1759427224076,0.7,229.67,229.61,20.8]
[1759427224389,0.7,229.67,229.59,4.3555904]
[1759427224390,0.7,229.67,229.6,20.8]
[1759427225968,5.05422639,229.67,229.6,25.15529784]
[1759427226998,17.60828754,229.71,229.6,25.15529784]
[1759427226999,0.7,229.71,229.61,0.65]
[1759427227212,31.9,229.71,229.61,0.65]
[1759427228051,4.35350457,229.7,229.64,20.8]
[1759427228356,0.7,229.69,229.64,20.8]
[1759427229155,0.7,229.68,229.63,4.3547565]
[1759427229357,4.35365177,229.7,229.64,0.65]
[1759427229891,4.35365177,229.7,229.63,25.1547565]
[1759427229892,0.7,229.69,229.63,25.1547565]
[1759427230068,0.7,229.69,229.6,4.35527885]
[1759427230270,0.7,229.72,229.63,20.8]
[1759427230475,31.18,229.73,229.64,0.65]
[1759427230861,17.61146312,229.79,229.64,0.65]
[1759427231091,131.3,229.85,229.64,0.65]
[1759427231092,10.87647521,229.82,229.68,20.8]
[1759427231269,131.3,229.85,229.68,20.8]
[1759427231270,31.9,229.81,229.69,0.65]
[1759427232371,0.7,229.81,229.69,0.65]
[1759427232684,31.9,229.81,229.69,0.65]
[1759427233064,31.9,229.81,229.73,20.8]
[1759427233260,31.9,229.81,229.73,21.45]
[1759427233488,11.57647521,229.84,229.74,0.65]
[1759427233660,31.2,229.83,229.74,0.65]
[1759427234518,0.7,229.84,229.74,0.65]
[1759427234819,31.2,229.85,229.74,0.65]
[1759427234985,0.7,229.86,229.75,15.23394993]
[1759427235190,0.7,229.86,229.78,20.8]
[1759427236601,5.05048853,229.86,229.78,20.8]
[1759427237010,5.05048853,229.86,229.78,21.45]
[1759427237011,0.7,229.86,229.78,21.45]
[1759427237191,0.7,229.86,229.8,20.8]
[1759427237514,31.2,229.87,229.8,20.8]
[1759427237813,31.2,229.87,229.81,0.65]
[1759427238901,31.2,229.87,229.82,20.8]
[1759427239386,31.9,229.87,229.81,4.35142073]
[1759427239591,31.9,229.87,229.81,25.15142073]
[1759427239815,31.2,229.87,229.81,25.15142073]
[1759427240017,31.2,229.87,229.81,25.80142073]
[1759427240595,0.7,229.9,229.84,20.8]